fUSD/lending_fUSD_20240224
["ID","MTS","AMOUNT","RATE_DAILY","PERIOD"]
[315027284,1708734641629,-5520.29,0.00034521,2]
[315027285,1708734641639,-151.0,0.00034549,2]
[315027286,1708734641650,-150.0,0.00034607,2]
[315027287,1708734641660,-697.092831,0.00034794,2]
[315027288,1708734641671,-15101.953559,0.00034794,2]
[315027289,1708734641681,-3378.921158,0.00034794,2]
[315027290,1708734641692,-2042.868864,0.00034794,2]
[315027291,1708734641702,-4685.949765,0.00034794,2]
[315027292,1708734641712,-8403.231115,0.00034794,2]
[315027293,1708734641724,-11764.523561,0.00034794,2]
[315027294,1708734641734,-583.821675,0.00034794,2]
[315027295,1708734641745,-2158.7839845,0.000349,2]
[315027296,1708734641756,-2158.78398442,0.000349,2]
[315027297,1708734641765,-2158.78398442,0.000349,2]
[315027298,1708734641776,-2158.78398442,0.000349,2]
[315027299,1708734641786,-2158.78398442,0.000349,2]
[315027300,1708734641797,-2158.78398442,0.000349,2]
[315027301,1708734641807,-2158.78398442,0.000349,2]
[315027302,1708734641817,-2158.78398442,0.000349,2]
[315027303,1708734641827,-152.6064863,0.00034913,7]
[315027304,1708734641838,-929.457108,0.00034931,2]
[315027305,1708734641849,-20135.938079,0.00034931,2]
[315027306,1708734641858,-4505.22821,0.00034931,2]
[315027307,1708734641868,-2723.825152,0.00034931,2]
[315027308,1708734641878,-6247.93302,0.00034931,2]
[315027309,1708734641888,-11204.308154,0.00034931,2]
[315027310,1708734641898,-15686.031415,0.00034931,2]
[315027311,1708734641908,-778.4289,0.00034931,2]
[315027312,1708734641918,-229.20433756,0.00035,7]
[315027313,1708734641928,-586.90975074,0.00035,4]
[315027314,1708734641938,-1000.0,0.00035,3]
[315027315,1708734641949,-165.0,0.00035,2]
[315027316,1708734641959,-4000.0,0.00035,2]
[315027317,1708734641971,-1161.821385,0.00035068,2]
[315027318,1708734641982,-25169.922599,0.00035068,2]
[315027319,1708734641992,-5631.535263,0.00035068,2]
[315027320,1708734642002,-3404.78144,0.00035068,2]
[315027321,1708734642013,-7809.916276,0.00035068,2]
[315027322,1708734642024,-14005.385192,0.00035068,2]
[315027323,1708734642034,-19607.539269,0.00035068,2]
[315027324,1708734642044,-973.036126,0.00035068,2]
[315027325,1708734642055,-154.20563152,0.00035097,7]
[315027326,1708734642066,-400.0,0.00035165,2]
[315027327,1708734642076,-323.0,0.0003519,2]
[315027328,1708734642086,-312.63,0.000353,3]
[315027329,1708734642097,-312.63,0.000353,3]
[315027330,1708734642108,-312.63,0.000353,3]
[315027331,1708734642119,-312.63,0.000353,3]
[315027332,1708734642129,-312.63,0.000353,3]
[315027333,1708734642139,-312.63,0.000353,3]
[315027334,1708734642149,-312.63,0.000353,3]
[315027335,1708734642159,-312.63,0.000353,3]
[315027336,1708734642169,-312.63,0.000353,3]
[315027337,1708734642179,-312.63,0.000353,3]
[315027338,1708734642188,-312.63,0.000353,3]
[315027339,1708734642198,-312.63,0.000353,3]
[315027340,1708734642208,-312.63,0.000353,3]
[315027341,1708734642220,-312.63,0.000353,3]
[315027342,1708734642230,-312.63,0.000353,3]
[315027343,1708734642240,-312.63,0.000353,3]
[315027344,1708734642250,-312.63,0.000353,3]
[315027345,1708734642260,-312.63,0.000353,3]
[315027346,1708734642270,-312.63,0.000353,3]
[315027347,1708734642280,-312.63,0.000353,3]
[315027348,1708734642290,-1626.549939,0.00035342,2]
[315027349,1708734642301,-35237.891638,0.00035342,2]
[315027350,1708734642310,-7884.149368,0.00035342,2]
[315027351,1708734642321,-4766.694016,0.00035342,2]
[315027352,1708734642331,-10933.882786,0.00035342,2]
[315027353,1708734642341,-19607.539269,0.00035342,2]
[315027354,1708734642352,-27450.554976,0.00035342,2]
[315027355,1708734642362,-1362.250576,0.00035342,2]
[315027356,1708734642372,-5905.51665412,0.00035344,2]
[315027357,1708734642382,-150.0,0.00035472,2]
[315027358,1708734642391,-1858.914216,0.00035589,2]
[315027359,1708734642400,-40271.876158,0.00035589,2]
[315027360,1708734642410,-9010.456421,0.00035589,2]
[315027361,1708734642420,-5447.650304,0.00035589,2]
[315027362,1708734642431,-12495.866041,0.00035589,2]
[315027363,1708734642442,-22408.616308,0.00035589,2]
[315027364,1708734642452,-31372.06283,0.00035589,2]
[315027365,1708734642462,-1556.857801,0.00035589,2]
[315027366,1708734642473,-477.62,0.00035616,2]
[315027367,1708734642483,-2844.2,0.00035616,2]
[315027368,1708734642493,-151.51,0.00035616,2]
[315027369,1708734642503,-154.20563152,0.00035653,7]
[315027370,1708734642513,-3416.47,0.000357,7]
[315027371,1708734642523,-2700.05,0.000357,7]
[315027372,1708734642533,-150.611562,0.00035715,7]
[315027373,1708734642544,-10667.85300445,0.00035718,8]
[315027374,1708734642555,-5520.29,0.00035798,2]
[315027375,1708734642565,-150.611562,0.00035977,7]
[315027376,1708734642575,-154.20563152,0.00036006,7]
[315027377,1708734642585,-155.57626885,0.00036129,7]
[315027378,1708734642595,-2116.86101888,0.00036301,30]
[315027379,1708734642604,-150.0,0.00036337,2]
[315027380,1708734642613,-154.20563152,0.00036355,7]
[315027381,1708734642623,-2158.78398442,0.00036431,2]
[315027382,1708734642633,-206.48,0.00036438,2]
[315027383,1708734642642,-159.39088986,0.00036477,7]
[315027384,1708734642652,-840.88,0.00036542,2]
[315027385,1708734642662,-323.0,0.0003656,7]
[315027386,1708734642671,-191.60846217,0.00036815,2]
[315027387,1708734642681,-542.7114398,0.00036886,2]
[315027388,1708734642690,-150.611562,0.00036895,7]
[315027389,1708734642702,-208.0,0.00036979,22]
[315027390,1708734642712,-666.0,0.00036986,2]
[315027391,1708734642723,-1050.0,0.00037,3]
[315027392,1708734642734,-3416.47,0.00037,7]
[315027393,1708734642745,-2700.05,0.00037,7]
[315027394,1708734642755,-5520.29,0.00037075,2]
[315027395,1708734642765,-155.007166,0.00037185,2]
[315027396,1708734642776,-155.007165,0.00037185,2]
[315027397,1708734642786,-181.731711,0.00037185,2]
[315027398,1708734642795,-155.007165,0.00037185,2]
[315027399,1708734642805,-312.63,0.000372,3]
[315027400,1708734642815,-312.63,0.000372,3]
[315027401,1708734642825,-312.63,0.000372,3]
[315027402,1708734642834,-312.63,0.000372,3]
[315027403,1708734642844,-312.63,0.000372,3]
[315027404,1708734642853,-312.63,0.000372,3]
[315027405,1708734642863,-312.63,0.000372,3]
[315027406,1708734642872,-312.63,0.000372,3]
[315027407,1708734642882,-312.63,0.000372,3]
[315027408,1708734642891,-312.63,0.000372,3]
[315027409,1708734642902,-312.63,0.000372,3]
[315027410,1708734642912,-312.63,0.000372,3]
[315027411,1708734642921,-312.63,0.000372,3]
[315027412,1708734642931,-312.63,0.000372,3]
[315027413,1708734642941,-312.63,0.000372,3]
[315027415,1708734642951,-312.63,0.000372,3]
[315027416,1708734642961,-312.63,0.000372,3]
[315027417,1708734642973,-312.63,0.000372,3]
[315027418,1708734642983,-312.63,0.000372,3]
[315027419,1708734642993,-312.63,0.000372,3]
[315027420,1708734643005,-150.0,0.00037203,2]
[315027421,1708734643015,-151.51,0.00037443,2]
[315027422,1708734643025,-180.0,0.00037671,2]
[315027423,1708734643035,-531.59071852,0.0003783,2]
[315027424,1708734643045,-3095.08,0.000379,7]
[315027425,1708734643055,-600661.180504,0.000379,3]
[315027426,1708734643065,-323.0,0.0003793,7]
[315027427,1708734643076,-350.0,0.00038,18]
[315027428,1708734643086,-2158.78398442,0.0003801,2]
[315027429,1708734643096,-150.0,0.00038068,2]
[315027430,1708734643106,-10667.85300445,0.00038082,11]
[315027431,1708734643117,-150.611562,0.00038098,7]
[315027432,1708734643127,-3416.47,0.000381,7]
[315027433,1708734643138,-2700.05,0.000381,7]
[315027434,1708734643148,-5905.51665412,0.00038255,2]
[315027435,1708734643158,-3093.90933726,0.00038281,10]
[315027437,1708734643167,-156.3052614,0.00038298,7]
[315027438,1708734643178,-1008.4955,0.00038299,2]
[315027439,1708734643188,-5520.29,0.00038352,2]
[315027440,1708734643198,-161.73,0.00038356,2]
[315027441,1708734643209,-3569.46,0.00038356,15]
[315027442,1708734643226,-151.0,0.00038388,2]
[315027443,1708734643236,-250.49088,0.00038388,2]
[315027444,1708734643247,-200.0,0.000385,12]
[315027445,1708734643257,-159.39088986,0.00038575,7]
[315027446,1708734643266,-2000.0,0.000386,2]
[315027447,1708734643276,-840.88,0.00038806,2]
[315027448,1708734643285,-150.0,0.00038933,2]
[315027449,1708734643295,-25077.58481992,0.00039,30]
[315027450,1708734643305,-5336.97149579,0.00039,30]
[315027451,1708734643316,-20222.29638452,0.00039,14]
[315027452,1708734643326,-7073.00176482,0.00039,7]
[315027453,1708734643336,-212.55349277,0.00039,33]
[315027454,1708734643346,-1100.0,0.00039,3]
[315027455,1708734643357,-350.0,0.00039,19]
[315027458,1708734643817,-312.63,0.00039,3]
[315027459,1708734643827,-312.63,0.00039,3]
[315027460,1708734643836,-312.63,0.00039,3]
[315027461,1708734643846,-312.63,0.00039,3]
[315027462,1708734643856,-312.63,0.00039,3]
[315027463,1708734643865,-312.63,0.00039,3]
[315027464,1708734643875,-312.63,0.00039,3]
[315027465,1708734643885,-312.63,0.00039,3]
[315027466,1708734643894,-312.63,0.00039,3]
[315027467,1708734643904,-312.63,0.00039,3]
[315027468,1708734643913,-312.63,0.00039,3]
[315027469,1708734643923,-312.63,0.00039,3]
[315027470,1708734643933,-312.63,0.00039,3]
[315027471,1708734643942,-312.63,0.00039,3]
[315027472,1708734643952,-312.63,0.00039,3]
[315027473,1708734643961,-312.63,0.00039,3]
[315027474,1708734643973,-312.63,0.00039,3]
[315027475,1708734643982,-312.63,0.00039,3]
[315027476,1708734643992,-312.63,0.00039,3]
[315027477,1708734644002,-312.63,0.00039,3]
[315027478,1708734644016,-3416.47,0.00039,7]
[315027479,1708734644025,-2700.05,0.00039,7]
[315027480,1708734644035,-302.0,0.00039033,4]
[315027481,1708734644044,-157.51738774,0.00039093,7]
[315027482,1708734644054,-1000.0,0.00039099,2]
[315027483,1708734644063,-301.96,0.000391,2]
[315027484,1708734644073,-169.045896,0.00039178,14]
[315027485,1708734644083,-1411.71084982,0.00039194,2]
[315027486,1708734644092,-1000.0,0.0003926,2]
[315027487,1708734644101,-151.51,0.00039269,2]
[315027488,1708734644110,-791.41,0.00039274,10]
[315027489,1708734644120,-659.5,0.00039274,10]
[315027490,1708734644129,-549.59,0.00039274,10]
[315027491,1708734644139,-457.99,0.00039274,10]
[315027492,1708734644148,-15185.12062188,0.00039282,2]
[315027493,1708734644158,-90623.96050406,0.00039284,31]
[315027494,1708734644171,-300.0,0.00039284,33]
[315027495,1708734644181,-1705.744602,0.00039284,30]
[315027496,1708734644190,-153.54957341,0.00039284,30]
[315027497,1708734644200,-152.0,0.000393,7]
[315027498,1708734644209,-323.0,0.000393,7]
[315027499,1708734644219,-157.51738774,0.00039394,7]
[315027500,1708734644229,-155.76031538,0.00039473,7]
[315027501,1708734644238,-200.0,0.000395,13]
[315027502,1708734644248,-208.0,0.00039537,26]
[315027503,1708734644257,-6892.55022949,0.00039577,2]
[315027504,1708734644267,-2158.78398442,0.00039588,2]
[315027505,1708734644277,-5520.29,0.0003963,2]
[315027506,1708734644287,-604.0,0.00039689,7]
[315027507,1708734644297,-157.51738774,0.00039704,7]
[315027508,1708734644307,-301.0,0.00039785,30]
[315027509,1708734644317,-150.0,0.00039798,2]
[315027510,1708734644327,-3095.08,0.000398,7]
[315027511,1708734644337,-3416.47,0.000398,7]
[315027512,1708734644347,-2700.05,0.000398,7]
[315027513,1708734644357,-597.69811164,0.00039815,4]
[315027514,1708734644366,-361.48224482,0.000399,2]
[315027515,1708734644376,-4940.23470745,0.000399,2]
[315027516,1708734644386,-4940.23470742,0.000399,2]
[315027517,1708734644396,-4940.23470742,0.000399,2]
[315027518,1708734644405,-4940.23470742,0.000399,2]
[315027519,1708734644415,-4940.23470742,0.000399,2]
[315027520,1708734644424,-4940.23470742,0.000399,2]
[315027521,1708734644433,-4940.23470742,0.000399,2]
[315027522,1708734644443,-4940.23470742,0.000399,2]
[315027523,1708734644452,-4940.23470742,0.000399,2]
[315027524,1708734644462,-4940.23470742,0.000399,2]
[315027525,1708734644473,-4940.23470742,0.000399,2]
[315027526,1708734644482,-4940.23470742,0.000399,2]
[315027527,1708734644491,-4940.23470742,0.000399,2]
[315027528,1708734644501,-4940.23470742,0.000399,2]
[315027529,1708734644510,-4940.23470742,0.000399,2]
[315027530,1708734644520,-4940.23470742,0.000399,2]
[315027531,1708734644529,-4940.23470742,0.000399,2]
[315027532,1708734644540,-4940.23470742,0.000399,2]
[315027533,1708734644550,-4940.23470742,0.000399,2]
[315027534,1708734644560,-4940.23470742,0.000399,2]
[315027535,1708734644570,-157.51738774,0.00039966,7]
[315027536,1708734644580,-650.0,0.0003997,2]
[315027537,1708734644590,-154.02083881,0.0003997,7]
[315027538,1708734644600,-1518.1266527,0.0004,4]
[315027539,1708734644609,-500000.0,0.0004,4]
[315027540,1708734644619,-350.0,0.0004,30]
[315027541,1708734644630,-255.0,0.0004,12]
[315027542,1708734644639,-255.0,0.0004,12]
[315027543,1708734644649,-255.0,0.0004,12]
[315027544,1708734644658,-255.0,0.0004,12]
[315027545,1708734644666,-7752.43,0.0004,30]
[315027546,1708734644676,-169.045896,0.0004,14]
[315027547,1708734644685,-150.611562,0.00040042,30]
[315027548,1708734644694,-301.96,0.00040065,2]
[315027549,1708734644704,-150.611562,0.00040117,30]
[315027550,1708734644713,-5656.357,0.00040256,2]
[315027551,1708734644725,-1371.0,0.00040256,2]
[315027552,1708734644735,-2695.0,0.00040256,2]
[315027553,1708734644744,-19893.0,0.00040256,2]
[315027554,1708734644753,-4107.0,0.00040256,2]
[315027555,1708734644763,-2295.0,0.00040256,2]
[315027556,1708734644772,-1868.0,0.00040256,2]
[315027557,1708734644782,-2934.0,0.00040256,2]
[315027558,1708734644791,-42677.0,0.00040256,2]
[315027559,1708734644801,-458.0,0.00040256,2]
[315027560,1708734644810,-955.0,0.00040256,2]
[315027561,1708734644819,-166.99392,0.00040356,4]
[315027562,1708734644828,-666.0,0.0004041,2]
[315027563,1708734644837,-3698.28783912,0.00040443,2]
[315027564,1708734644846,-10667.85300445,0.00040445,14]
[315027565,1708734644856,-157.51738774,0.00040495,30]
[315027566,1708734644865,-200.0,0.000405,14]
[315027567,1708734644875,-210.31,0.00040547,2]
[315027568,1708734644884,-1000.0,0.000406,15]
[315027569,1708734644893,-500.0,0.000406,15]
[315027570,1708734644902,-150.0,0.00040663,2]
[315027571,1708734644911,-1208.0,0.00040694,30]
[315027572,1708734644920,-1000.0,0.00040733,2]
[315027573,1708734644929,-154.20563152,0.00040767,30]
[315027574,1708734644938,-1351.42348424,0.000408,30]
[315027575,1708734644947,-3416.47,0.000408,7]
[315027576,1708734644956,-177.595393,0.00040805,2]
[315027577,1708734644967,-169.045896,0.00040822,14]
[315027578,1708734644976,-154.20563152,0.00040892,30]
[315027579,1708734644986,-1000.0,0.000409,15]
[315027580,1708734644995,-1000.0,0.000409,15]
[315027581,1708734645004,-312.63,0.000409,4]
[315027582,1708734645013,-312.63,0.000409,4]
[315027583,1708734645023,-312.63,0.000409,4]
[315027584,1708734645032,-312.63,0.000409,4]
[315027585,1708734645041,-312.63,0.000409,4]
[315027586,1708734645051,-312.63,0.000409,4]
[315027587,1708734645060,-312.63,0.000409,4]
[315027588,1708734645070,-312.63,0.000409,4]
[315027589,1708734645081,-312.63,0.000409,4]
[315027590,1708734645090,-312.63,0.000409,4]
[315027591,1708734645100,-312.63,0.000409,4]
[315027592,1708734645110,-312.63,0.000409,4]
[315027593,1708734645119,-312.63,0.000409,4]
[315027594,1708734645128,-312.63,0.000409,4]
[315027595,1708734645137,-312.63,0.000409,4]
[315027596,1708734645147,-312.63,0.000409,4]
[315027597,1708734645156,-312.63,0.000409,4]
[315027598,1708734645165,-312.63,0.000409,4]
[315027599,1708734645174,-312.63,0.000409,4]
[315027600,1708734645184,-312.63,0.000409,4]
[315027601,1708734645193,-2700.05,0.000409,7]
[315027602,1708734645202,-152.6064863,0.00040951,30]
[315027603,1708734645212,-350.0,0.00041,31]
[315027604,1708734645224,-257.0,0.00041,30]
[315027605,1708734645233,-1150.0,0.00041,3]
[315027606,1708734645243,-1500.0,0.00041,42]
[315027607,1708734645252,-301.96,0.0004103,2]
[315027608,1708734645262,-840.88,0.0004107,2]
[315027609,1708734645271,-400.0,0.0004107,3]
[315027610,1708734645281,-1000.0,0.00041095,30]
[315027611,1708734645291,-500.0,0.00041095,2]
[315027612,1708734645301,-183.0,0.00041096,2]
[315027613,1708734645311,-688.88,0.00041096,2]
[315027614,1708734645321,-151.51,0.00041096,2]
[315027615,1708734645330,-500.0,0.000411,6]
[315027616,1708734645340,-445.60153459,0.000411,6]
[315027617,1708734645350,-3095.08,0.000411,7]
[315027618,1708734645360,-536.0,0.000411,30]
[315027619,1708734645370,-1125.0,0.000411,2]
[315027620,1708734645379,-5905.51665412,0.00041166,3]
[315027621,1708734645388,-2158.78398442,0.00041167,5]
[315027622,1708734645398,-1000.0,0.000412,15]
[315027623,1708734645408,-420.62,0.00041369,6]
[315027624,1708734645417,-444.0,0.0004137,7]
[315027625,1708734645426,-444.0,0.0004138,7]
[315027626,1708734645436,-444.0,0.0004139,7]
[315027627,1708734645445,-2000.0,0.000414,2]
[315027628,1708734645454,-151.24,0.00041423,120]
[315027629,1708734645463,-245.46,0.00041433,120]
[315027630,1708734645475,-150.5,0.00041433,120]
[315027631,1708734645484,-153.93,0.00041433,120]
[315027632,1708734645494,-194.24,0.00041433,120]
[315027633,1708734645503,-4445.78,0.00041466,2]
[315027634,1708734645513,-1000.0,0.000415,15]
[315027635,1708734645522,-200.0,0.000415,15]
[315027636,1708734645532,-150.0,0.00041528,2]
[315027637,1708734645541,-1400.0,0.00041529,14]
[315027638,1708734645553,-154.20563152,0.00041532,30]
[315027639,1708734645562,-150.0,0.00041538,30]
[315027640,1708734645571,-169.045896,0.00041644,14]
[315027641,1708734645580,-1000.0,0.00041699,2]
[315027642,1708734645590,-3416.47,0.000417,7]
[315027643,1708734645599,-157.51738774,0.00041706,30]
[315027644,1708734645608,-1952.0,0.00041792,2]
[315027645,1708734645617,-216.0,0.00041792,2]
[315027646,1708734645627,-1231.0,0.00041792,2]
[315027647,1708734645635,-1256.0,0.00041792,2]
[315027648,1708734645644,-600.0,0.00041792,2]
[315027649,1708734645653,-471.681,0.00041792,2]
[315027650,1708734645663,-1006.0,0.00041792,2]
[315027651,1708734645672,-276.0,0.00041792,2]
[315027652,1708734645681,-859.0,0.00041792,2]
[315027653,1708734645691,-302.0,0.00041792,2]
[315027654,1708734645700,-2904.0,0.00041792,2]
[315027655,1708734645710,-1138.0,0.00041792,2]
[315027656,1708734645722,-342.0,0.00041792,2]
[315027657,1708734645732,-322.0,0.00041792,2]
[315027658,1708734645742,-389.0,0.00041792,2]
[315027659,1708734645752,-455.0,0.00041792,2]
[315027660,1708734645762,-7434.0,0.00041792,2]
[315027661,1708734645774,-8183.0,0.00041792,2]
[315027662,1708734645785,-1000.0,0.000418,15]
[315027663,1708734645794,-500.0,0.000418,2]
[315027664,1708734645804,-500.0,0.000418,2]
[315027665,1708734645821,-500.0,0.000418,2]
[315027666,1708734645836,-500.0,0.000418,2]
[315027667,1708734645845,-500.0,0.000418,2]
[315027668,1708734645855,-500.0,0.000418,2]
[315027669,1708734645865,-500.0,0.000418,2]
[315027670,1708734645875,-500.0,0.000418,2]
[315027671,1708734645884,-500.0,0.000418,2]
[315027672,1708734645894,-500.0,0.000418,2]
[315027673,1708734645904,-500.0,0.000418,2]
[315027674,1708734645913,-500.0,0.000418,2]
[315027675,1708734645922,-500.0,0.000418,2]
[315027676,1708734645932,-500.0,0.000418,2]
[315027677,1708734645942,-500.0,0.000418,2]
[315027678,1708734645952,-500.0,0.000418,2]
[315027679,1708734645962,-500.0,0.000418,2]
[315027681,1708734645977,-500.0,0.000418,2]
[315027683,1708734645988,-500.0,0.000418,2]
[315027684,1708734645999,-500.0,0.000418,2]
[315027685,1708734646009,-500.0,0.000418,2]
[315027686,1708734646089,-500.0,0.000418,2]
[315027687,1708734646101,-500.0,0.000418,2]
[315027688,1708734646111,-500.0,0.000418,2]
[315027689,1708734646121,-500.0,0.000418,2]
[315027690,1708734646130,-500.0,0.000418,2]
[315027691,1708734646140,-500.0,0.000418,2]
[315027692,1708734646150,-500.0,0.000418,2]
[315027693,1708734646160,-500.0,0.000418,2]
[315027694,1708734646169,-500.0,0.000418,2]
[315027695,1708734646178,-500.0,0.000418,2]
[315027696,1708734646188,-235.55621466,0.000418,2]
[315027697,1708734646197,-500.0,0.000418,2]
[315027698,1708734646207,-500.0,0.000418,2]
[315027699,1708734646218,-500.0,0.000418,2]
[315027700,1708734646227,-500.0,0.000418,2]
[315027701,1708734646237,-500.0,0.000418,2]
[315027702,1708734646246,-500.0,0.000418,2]
[315027703,1708734646255,-500.0,0.000418,2]
[315027704,1708734646264,-500.0,0.000418,2]
[315027705,1708734646273,-500.0,0.000418,2]
[315027706,1708734646282,-500.0,0.000418,2]
[315027707,1708734646291,-500.0,0.000418,2]
[315027708,1708734646300,-500.0,0.000418,2]
[315027709,1708734646310,-500.0,0.000418,2]
[315027710,1708734646319,-500.0,0.000418,2]
[315027711,1708734646328,-500.0,0.000418,2]
[315027712,1708734646337,-500.0,0.000418,2]
[315027713,1708734646347,-500.0,0.000418,2]
[315027714,1708734646357,-500.0,0.000418,2]
[315027715,1708734646366,-500.0,0.000418,2]
[315027716,1708734646375,-500.0,0.000418,2]
[315027717,1708734646384,-500.0,0.000418,2]
[315027718,1708734646393,-500.0,0.000418,2]
[315027719,1708734646402,-500.0,0.000418,2]
[315027720,1708734646412,-500.0,0.000418,2]
[315027721,1708734646422,-500.0,0.000418,2]
[315027723,1708734646431,-500.0,0.000418,2]
[315027725,1708734646440,-500.0,0.000418,2]
[315027727,1708734646449,-500.0,0.000418,2]
[315027729,1708734646458,-500.0,0.000418,2]
[315027731,1708734646468,-500.0,0.000418,2]
[315027733,1708734646477,-500.0,0.000418,2]
[315027735,1708734646486,-500.0,0.000418,2]
[315027737,1708734646495,-157.60361213,0.000418,2]
[315027739,1708734646505,-2700.05,0.000418,7]
[315027741,1708734646514,-163.0,0.0004197,120]
[315027742,1708734646523,-195.0,0.0004197,3]
[315027745,1708734646533,-163.0,0.0004198,120]
[315027746,1708734646542,-265.27,0.0004198,120]
[315027748,1708734646553,-195.0,0.0004198,3]
[315027750,1708734646563,-150.5,0.0004199,120]
[315027753,1708734646572,-195.0,0.0004199,3]
[315027754,1708734646582,-163.0,0.0004199,120]
[315027756,1708734646591,-301.96,0.00041995,2]
[315027758,1708734646602,-2000.0,0.00042,30]
[315027760,1708734646612,-2000.0,0.00042,30]
[315027762,1708734646621,-350.0,0.00042,32]
[315027764,1708734646631,-1439.669,0.00042,59]
[315027766,1708734646641,-257.0,0.00042,30]
[315027768,1708734646650,-200.0,0.00042,2]
[315027770,1708734646659,-200.0,0.00042,2]
[315027771,1708734646668,-3569.46,0.00042092,15]
[315027773,1708734646678,-208.0,0.00042095,31]
[315027775,1708734646687,-666.0,0.000421,4]
[315027777,1708734646696,-2000.0,0.000421,30]
[315027778,1708734646706,-150.611562,0.00042167,30]
[315027779,1708734646715,-630.93,0.00042191,8]
[315027780,1708734646726,-1000.0,0.00042205,2]
[315027781,1708734646735,-154.20563152,0.00042235,30]
[315027782,1708734646744,-150.0,0.00042394,2]
[315027783,1708734646754,-3095.08,0.000424,7]
[315027784,1708734646764,-1000.0,0.000424,8]
[315027785,1708734646773,-1000.0,0.00042465,40]
[315027786,1708734646783,-169.045896,0.00042466,14]
[315027787,1708734646792,-200.0,0.000425,17]
[315027788,1708734646801,-155.59752133,0.0004272,30]
[315027789,1708734646810,-2158.78398442,0.00042746,5]
[315027790,1708734646819,-10667.85300445,0.00042809,17]
[315027791,1708734646827,-301.96,0.0004296,2]
[315027792,1708734646837,-350.0,0.00043,33]
[315027793,1708734646845,-6580.0,0.00043,30]
[315027794,1708734646855,-6580.0,0.00043,60]
[315027795,1708734646864,-257.0,0.00043,30]
[315027796,1708734646873,-1200.0,0.00043,3]
[315027797,1708734646882,-1499.99999904,0.00043,44]
[315027798,1708734646890,-3416.47,0.00043,7]
[315027799,1708734646899,-2700.05,0.00043,7]
[315027800,1708734646909,-841.24,0.00043013,10]
[315027801,1708734646918,-10961.23,0.00043014,2]
[315027802,1708734646927,-1983.69,0.0004308,2]
[315027803,1708734646936,-5642.0,0.00043256,2]
[315027804,1708734646946,-2695.0,0.00043256,2]
[315027805,1708734646955,-19893.0,0.00043256,2]
[315027806,1708734646964,-3754.611,0.00043256,2]
[315027807,1708734646975,-2293.0,0.00043256,2]
[315027808,1708734646984,-2930.887,0.00043256,2]
[315027809,1708734646994,-33496.319,0.00043256,2]
[315027810,1708734647003,-150.0,0.00043259,2]
[315027811,1708734647013,-169.045896,0.00043288,14]
[315027812,1708734647023,-840.88,0.00043333,2]
[315027813,1708734647033,-2000.0,0.000434,30]
[315027814,1708734647043,-154.20563152,0.00043409,30]
[315027815,1708734647053,-160.49481862,0.00043436,30]
[315027816,1708734647062,-154.20563152,0.00043479,30]